fUSD/lending_fUSD_20250103
["ID","MTS","AMOUNT","RATE_DAILY","PERIOD"]
[347511126,1735895456131,-500.0,9.377e-05,2]
[347511127,1735895456141,-500.0,9.377e-05,2]
[347511128,1735895456150,-500.0,9.377e-05,2]
[347511129,1735895456161,-500.0,9.377e-05,2]
[347511130,1735895456173,-237.43690808,9.377e-05,2]
[347511131,1735895456183,-240.88677756,9.377e-05,2]
[347511132,1735895456193,-229.08438625,9.377e-05,2]
[347511133,1735895456205,-500.0,9.377e-05,2]
[347511134,1735895456215,-500.0,9.377e-05,2]
[347511135,1735895456225,-500.0,9.377e-05,2]
[347511136,1735895456236,-500.0,9.377e-05,2]
[347511137,1735895456247,-500.0,9.377e-05,2]
[347511138,1735895456256,-500.0,9.377e-05,2]
[347511139,1735895456266,-616.56899495,9.377e-05,2]
[347511140,1735895456275,-500.0,9.377e-05,2]
[347511141,1735895456285,-500.0,9.377e-05,2]
[347511142,1735895456295,-341.38930594,9.377e-05,2]
[347511143,1735895456304,-500.0,9.377e-05,2]
[347511144,1735895456314,-500.0,9.377e-05,2]
[347511145,1735895456324,-500.0,9.377e-05,2]
[347511146,1735895456333,-240.93012697,9.377e-05,2]
[347511147,1735895456343,-642.92345324,9.377e-05,2]
[347511148,1735895456353,-500.0,9.377e-05,2]
[347511149,1735895456363,-500.0,9.377e-05,2]
[347511150,1735895456373,-500.0,9.377e-05,2]
[347511151,1735895456383,-500.0,9.377e-05,2]
[347511152,1735895456393,-500.0,9.377e-05,2]
[347511153,1735895456403,-500.0,9.377e-05,2]
[347511154,1735895456663,-500.0,9.377e-05,2]
[347511155,1735895456673,-500.0,9.377e-05,2]
[347511156,1735895456683,-500.0,9.377e-05,2]
[347511157,1735895456692,-500.0,9.377e-05,2]
[347511158,1735895456701,-829.37,9.377e-05,2]
[347511159,1735895456713,-500.0,9.377e-05,2]
[347511160,1735895456724,-500.0,9.377e-05,2]
[347511161,1735895456733,-412.83468857,9.377e-05,2]
[347511162,1735895456743,-500.0,9.377e-05,2]
[347511163,1735895456752,-500.0,9.377e-05,2]
[347511164,1735895456761,-500.0,9.377e-05,2]
[347511165,1735895456771,-685.14,9.377e-05,2]
[347511166,1735895456780,-1027.37,9.377e-05,2]
[347511167,1735895456789,-300.0,9.377e-05,2]
[347511168,1735895456799,-248.71873835,9.377e-05,2]
[347511169,1735895456809,-629.97,9.377e-05,2]
[347511170,1735895456819,-500.0,9.377e-05,2]
[347511171,1735895456829,-500.0,9.377e-05,2]
[347511172,1735895456839,-1638.06,9.377e-05,2]
[347511173,1735895456848,-500.0,9.377e-05,2]
[347511174,1735895456858,-500.0,9.377e-05,2]
[347511175,1735895456868,-500.0,9.377e-05,2]
[347511176,1735895456877,-715.61,9.377e-05,2]
[347511177,1735895456887,-154.38115802,9.377e-05,2]
[347511178,1735895456896,-500.0,9.377e-05,2]
[347511179,1735895456906,-500.0,9.377e-05,2]
[347511180,1735895456915,-500.0,9.377e-05,2]
[347511181,1735895456924,-500.0,9.377e-05,2]
[347511182,1735895456934,-500.0,9.377e-05,2]
[347511183,1735895456944,-500.0,9.377e-05,2]
[347511184,1735895456953,-500.0,9.377e-05,2]
[347511185,1735895456962,-500.0,9.377e-05,2]
[347511186,1735895456972,-600.24,9.377e-05,2]
[347511187,1735895456981,-500.0,9.377e-05,2]
[347511188,1735895456991,-500.0,9.377e-05,2]
[347511189,1735895457000,-999.73,9.377e-05,2]
[347511190,1735895457009,-500.0,9.377e-05,2]
[347511191,1735895457018,-596.25,9.377e-05,2]
[347511192,1735895457027,-500.0,9.377e-05,2]
[347511193,1735895457036,-500.0,9.377e-05,2]
[347511194,1735895457046,-545.38,9.377e-05,2]
[347511195,1735895457055,-500.0,9.377e-05,2]
[347511196,1735895457064,-701.23,9.377e-05,2]
[347511197,1735895457073,-500.0,9.377e-05,2]
[347511198,1735895457082,-500.0,9.377e-05,2]
[347511199,1735895457091,-500.0,9.377e-05,2]
[347511200,1735895457101,-500.0,9.377e-05,2]
[347511201,1735895457111,-960.41,9.377e-05,2]
[347511202,1735895457120,-500.0,9.377e-05,2]
[347511203,1735895457130,-500.0,9.377e-05,2]
[347511204,1735895457139,-500.0,9.377e-05,2]
[347511205,1735895457149,-500.0,9.377e-05,2]
[347511206,1735895457160,-500.0,9.377e-05,2]
[347511207,1735895457173,-1351.79,9.377e-05,2]
[347511208,1735895457183,-1481.21,9.377e-05,2]
[347511209,1735895457193,-500.0,9.377e-05,2]
[347511210,1735895457203,-500.0,9.377e-05,2]
[347511211,1735895457212,-500.0,9.377e-05,2]
[347511212,1735895457221,-500.0,9.377e-05,2]
[347511213,1735895457231,-500.0,9.377e-05,2]
[347511214,1735895457241,-1667.4,9.377e-05,2]
[347511215,1735895457251,-500.0,9.377e-05,2]
[347511216,1735895457260,-500.0,9.377e-05,2]
[347511217,1735895457270,-500.0,9.377e-05,2]
[347511218,1735895457279,-500.0,9.377e-05,2]
[347511219,1735895457290,-500.0,9.377e-05,2]
[347511220,1735895457299,-500.0,9.377e-05,2]
[347511221,1735895457308,-500.0,9.377e-05,2]
[347511222,1735895457318,-500.0,9.377e-05,2]
[347511223,1735895457328,-500.0,9.377e-05,2]
[347511224,1735895457338,-500.0,9.377e-05,2]
[347511225,1735895457347,-500.0,9.377e-05,2]
[347511226,1735895457357,-500.0,9.377e-05,2]
[347511227,1735895457366,-500.0,9.377e-05,2]
[347511228,1735895457375,-500.0,9.377e-05,2]
[347511229,1735895457385,-500.0,9.377e-05,2]
[347511230,1735895457396,-1040.92,9.377e-05,2]
[347511231,1735895457407,-500.0,9.377e-05,2]
[347511232,1735895457417,-500.0,9.377e-05,2]
[347511233,1735895457427,-708.08,9.377e-05,2]
[347511234,1735895457436,-500.0,9.377e-05,2]
[347511235,1735895457445,-500.0,9.377e-05,2]
[347511236,1735895457456,-500.0,9.377e-05,2]
[347511237,1735895457465,-500.0,9.377e-05,2]
[347511238,1735895457475,-1235.17,9.377e-05,2]
[347511239,1735895457485,-500.0,9.377e-05,2]
[347511240,1735895457494,-500.0,9.377e-05,2]
[347511241,1735895457503,-500.0,9.377e-05,2]
[347511242,1735895457513,-500.0,9.377e-05,2]
[347511243,1735895457522,-500.0,9.377e-05,2]
[347511244,1735895457532,-500.0,9.377e-05,2]
[347511245,1735895457542,-500.0,9.377e-05,2]
[347511246,1735895457551,-500.0,9.377e-05,2]
[347511247,1735895457561,-500.0,9.377e-05,2]
[347511248,1735895457571,-1066.92,9.377e-05,2]
[347511249,1735895457580,-500.0,9.377e-05,2]
[347511250,1735895457590,-500.0,9.377e-05,2]
[347511251,1735895457601,-500.0,9.377e-05,2]
[347511252,1735895457611,-1000.0,9.377e-05,2]
[347511253,1735895457620,-500.0,9.377e-05,2]
[347511254,1735895457630,-500.0,9.377e-05,2]
[347511255,1735895457639,-500.0,9.377e-05,2]
[347511256,1735895457649,-1890.16,9.377e-05,2]
[347511257,1735895457658,-500.0,9.377e-05,2]
[347511258,1735895457667,-500.0,9.377e-05,2]
[347511259,1735895457677,-1572.62,9.377e-05,2]
[347511260,1735895457686,-500.0,9.377e-05,2]
[347511261,1735895457695,-500.0,9.377e-05,2]
[347511262,1735895457705,-500.0,9.377e-05,2]
[347511263,1735895457715,-500.0,9.377e-05,2]
[347511264,1735895457724,-500.0,9.377e-05,2]
[347511265,1735895457733,-2021.58,9.377e-05,2]
[347511266,1735895457743,-500.0,9.377e-05,2]
[347511267,1735895457752,-500.0,9.377e-05,2]
[347511268,1735895457762,-500.0,9.377e-05,2]
[347511269,1735895457771,-330.58041912,9.377e-05,2]
[347511270,1735895457780,-2630.07,9.377e-05,2]
[347511271,1735895457792,-706.56,9.377e-05,2]
[347511272,1735895457802,-500.0,9.377e-05,2]
[347511273,1735895457812,-500.0,9.377e-05,2]
[347511274,1735895457822,-500.0,9.377e-05,2]
[347511275,1735895457832,-500.0,9.377e-05,2]
[347511276,1735895457843,-500.0,9.377e-05,2]
[347511277,1735895457854,-1925.66,9.377e-05,2]
[347511278,1735895457864,-548.9,9.377e-05,2]
[347511279,1735895457874,-500.0,9.377e-05,2]
[347511280,1735895457883,-784.1,9.377e-05,2]
[347511281,1735895457894,-500.0,9.377e-05,2]
[347511282,1735895457903,-500.0,9.377e-05,2]
[347511283,1735895457913,-500.0,9.377e-05,2]
[347511284,1735895457922,-602.8,9.377e-05,2]
[347511285,1735895457932,-500.0,9.377e-05,2]
[347511286,1735895457941,-766.75,9.377e-05,2]
[347511287,1735895457950,-1464.02,9.377e-05,2]
[347511288,1735895457960,-1219.58,9.377e-05,2]
[347511289,1735895457969,-500.0,9.377e-05,2]
[347511290,1735895457979,-500.0,9.377e-05,2]
[347511291,1735895457988,-500.0,9.377e-05,2]
[347511292,1735895457998,-760.3,9.377e-05,2]
[347511293,1735895458008,-1115.91,9.377e-05,2]
[347511294,1735895458017,-500.0,9.377e-05,2]
[347511295,1735895458027,-500.0,9.377e-05,2]
[347511296,1735895458036,-500.0,9.377e-05,2]
[347511297,1735895458047,-597.36,9.377e-05,2]
[347511298,1735895458057,-1444.75,9.377e-05,2]
[347511299,1735895458066,-1766.74,9.377e-05,2]
[347511300,1735895458076,-500.0,9.377e-05,2]
[347511301,1735895458085,-500.0,9.377e-05,2]
[347511302,1735895458095,-500.0,9.377e-05,2]
[347511303,1735895458104,-1077.09,9.377e-05,2]
[347511304,1735895458114,-1506.06,9.377e-05,2]
[347511305,1735895458124,-819.82,9.377e-05,2]
[347511306,1735895458133,-1035.07,9.377e-05,2]
[347511307,1735895458143,-500.0,9.377e-05,2]
[347511308,1735895458152,-1248.64,9.377e-05,2]
[347511309,1735895458163,-500.0,9.377e-05,2]
[347511310,1735895458173,-1084.63,9.377e-05,2]
[347511311,1735895458182,-500.0,9.377e-05,2]
[347511312,1735895458191,-2008.65,9.377e-05,2]
[347511313,1735895458202,-500.0,9.377e-05,2]
[347511314,1735895458213,-900.5,9.377e-05,2]
[347511315,1735895458222,-500.0,9.377e-05,2]
[347511316,1735895458232,-2037.23,9.377e-05,2]
[347511317,1735895458243,-1526.04,9.377e-05,2]
[347511318,1735895458254,-970.85,9.377e-05,2]
[347511319,1735895458263,-799.84,9.377e-05,2]
[347511320,1735895458273,-4190.7,9.377e-05,2]
[347511321,1735895458282,-500.0,9.377e-05,2]
[347511322,1735895458291,-2739.81,9.377e-05,2]
[347511323,1735895458302,-500.0,9.377e-05,2]
[347511324,1735895458311,-500.0,9.377e-05,2]
[347511325,1735895458320,-500.0,9.377e-05,2]
[347511326,1735895458330,-500.0,9.377e-05,2]
[347511327,1735895458339,-500.0,9.377e-05,2]
[347511328,1735895458349,-1546.01,9.377e-05,2]
[347511329,1735895458358,-500.0,9.377e-05,2]
[347511330,1735895458367,-500.0,9.377e-05,2]
[347511331,1735895458377,-3294.04,9.377e-05,2]
[347511332,1735895458386,-500.0,9.377e-05,2]
[347511333,1735895458395,-500.0,9.377e-05,2]
[347511334,1735895458405,-500.0,9.377e-05,2]
[347511335,1735895458414,-1993.8,9.377e-05,2]
[347511336,1735895458424,-500.0,9.377e-05,2]
[347511337,1735895458433,-213.52616347,9.377e-05,2]
[347511338,1735895458443,-500.0,9.377e-05,2]
[347511339,1735895458452,-470.82437813,9.377e-05,2]
[347511340,1735895458462,-500.0,9.377e-05,2]
[347511341,1735895458471,-500.0,9.377e-05,2]
[347511342,1735895458480,-542.35,9.377e-05,2]
[347511343,1735895458490,-500.0,9.377e-05,2]
[347511344,1735895458499,-636.34,9.377e-05,2]
[347511345,1735895458508,-1185.55,9.377e-05,2]
[347511346,1735895458518,-500.0,9.377e-05,2]
[347511347,1735895458527,-500.0,9.377e-05,2]
[347511348,1735895458537,-500.0,9.377e-05,2]
[347511349,1735895458547,-2123.33,9.377e-05,2]
[347511350,1735895458557,-2128.48,9.377e-05,2]
[347511351,1735895458566,-500.0,9.377e-05,2]
[347511352,1735895458575,-500.0,9.377e-05,2]
[347511353,1735895458585,-500.0,9.377e-05,2]
[347511354,1735895458594,-500.0,9.377e-05,2]
[347511355,1735895458603,-500.0,9.377e-05,2]
[347511356,1735895458614,-500.0,9.377e-05,2]
[347511357,1735895458623,-500.0,9.377e-05,2]
[347511358,1735895458634,-629.74,9.377e-05,2]
[347511359,1735895458645,-500.0,9.377e-05,2]
[347511360,1735895458655,-536.08,9.377e-05,2]
[347511361,1735895458665,-1086.04,9.377e-05,2]
[347511362,1735895458674,-1817.7,9.377e-05,2]
[347511363,1735895458683,-509.98,9.377e-05,2]
[347511364,1735895458692,-500.0,9.377e-05,2]
[347511365,1735895458702,-670.75,9.377e-05,2]
[347511366,1735895458712,-2088.59,9.377e-05,2]
[347511367,1735895458721,-500.0,9.377e-05,2]
[347511368,1735895458731,-500.0,9.377e-05,2]
[347511369,1735895458740,-790.21,9.377e-05,2]
[347511370,1735895458749,-500.0,9.377e-05,2]
[347511371,1735895458758,-500.0,9.377e-05,2]
[347511372,1735895458767,-1771.8,9.377e-05,2]
[347511373,1735895458776,-1095.49,9.377e-05,2]
[347511374,1735895458786,-1318.89,9.377e-05,2]
[347511375,1735895458795,-500.0,9.377e-05,2]
[347511376,1735895458804,-500.0,9.377e-05,2]
[347511377,1735895458814,-752.78,9.377e-05,2]
[347511378,1735895458823,-500.0,9.377e-05,2]
[347511379,1735895458833,-830.78,9.377e-05,2]
[347511380,1735895458843,-1862.76,9.377e-05,2]
[347511381,1735895458852,-500.0,9.377e-05,2]
[347511382,1735895458862,-502.12193717,9.377e-05,2]
[347511383,1735895458871,-547.21,9.377e-05,2]
[347511384,1735895458881,-500.0,9.377e-05,2]
[347511385,1735895458893,-500.0,9.377e-05,2]
[347511386,1735895458902,-500.0,9.377e-05,2]
[347511387,1735895458912,-1228.04,9.377e-05,2]
[347511388,1735895458922,-500.0,9.377e-05,2]
[347511389,1735895458931,-3209.82,9.377e-05,2]
[347511390,1735895459025,-500.0,9.377e-05,2]
[347511391,1735895459035,-500.0,9.377e-05,2]
[347511392,1735895459044,-500.0,9.377e-05,2]
[347511393,1735895459053,-500.0,9.377e-05,2]
[347511394,1735895459062,-2244.82,9.377e-05,2]
[347511395,1735895459071,-675.86,9.377e-05,2]
[347511396,1735895459081,-500.0,9.377e-05,2]
[347511397,1735895459090,-500.0,9.377e-05,2]
[347511398,1735895459101,-500.0,9.377e-05,2]
[347511399,1735895459111,-603.95,9.377e-05,2]
[347511400,1735895459121,-1071.58,9.377e-05,2]
[347511401,1735895459130,-500.89993873,9.377e-05,2]
[347511402,1735895459139,-559.48,9.377e-05,2]
[347511403,1735895459149,-797.46,9.377e-05,2]
[347511404,1735895459159,-500.0,9.377e-05,2]
[347511405,1735895459171,-500.0,9.377e-05,2]
[347511406,1735895459180,-500.0,9.377e-05,2]
[347511407,1735895459190,-501.78328228,9.377e-05,2]
[347511408,1735895459199,-1858.78,9.377e-05,2]
[347511409,1735895459211,-589.59,9.377e-05,2]
[347511410,1735895459221,-616.82743092,9.377e-05,2]
[347511411,1735895459230,-500.0,9.377e-05,2]
[347511412,1735895459241,-500.0,9.377e-05,2]
[347511413,1735895459251,-1496.62,9.377e-05,2]
[347511414,1735895459260,-1000.52,9.377e-05,2]
[347511415,1735895459270,-500.0,9.377e-05,2]
[347511416,1735895459279,-1105.66,9.377e-05,2]
[347511417,1735895459288,-500.0,9.377e-05,2]
[347511418,1735895459297,-2890.2,9.377e-05,2]
[347511419,1735895459306,-500.0,9.377e-05,2]
[347511420,1735895459315,-503.37489412,9.377e-05,2]
[347511421,1735895459325,-724.51,9.377e-05,2]
[347511422,1735895459334,-500.0,9.377e-05,2]
[347511423,1735895459344,-602.18,9.377e-05,2]
[347511424,1735895459353,-500.0,9.377e-05,2]
[347511425,1735895459363,-501.29610897,9.377e-05,2]
[347511426,1735895459372,-500.0,9.377e-05,2]
[347511427,1735895459381,-2019.58,9.377e-05,2]
[347511428,1735895459391,-500.0,9.377e-05,2]
[347511429,1735895459400,-815.64,9.377e-05,2]
[347511430,1735895459411,-500.0,9.377e-05,2]
[347511431,1735895459420,-230.87334615,9.377e-05,2]
[347511432,1735895459429,-600.9,9.377e-05,2]
[347511433,1735895459439,-500.0,9.377e-05,2]
[347511434,1735895459450,-500.0,9.377e-05,2]
[347511435,1735895459460,-500.0,9.377e-05,2]
[347511436,1735895459470,-500.0,9.377e-05,2]
[347511437,1735895459479,-500.0,9.377e-05,2]
[347511438,1735895459488,-588.0,9.377e-05,2]
[347511439,1735895459497,-501.00263213,9.377e-05,2]
[347511440,1735895459509,-3014.68,9.377e-05,2]
[347511441,1735895459520,-500.0,9.377e-05,2]
[347511442,1735895459529,-500.0,9.377e-05,2]
[347511443,1735895459538,-500.0,9.377e-05,2]
[347511444,1735895459547,-500.0,9.377e-05,2]
[347511445,1735895459557,-1418.1,9.377e-05,2]
[347511446,1735895459566,-518.55,9.377e-05,2]
[347511447,1735895459575,-1298.29,9.377e-05,2]
[347511448,1735895459584,-1812.76,9.377e-05,2]
[347511449,1735895459593,-500.0,9.377e-05,2]
[347511450,1735895459602,-500.0,9.377e-05,2]
[347511451,1735895459611,-535.57545402,9.377e-05,2]
[347511452,1735895459620,-1282.15,9.377e-05,2]
[347511453,1735895459629,-500.0,9.377e-05,2]
[347511454,1735895459638,-500.0,9.377e-05,2]
[347511455,1735895459647,-500.0,9.377e-05,2]
[347511456,1735895459657,-500.0,9.377e-05,2]
[347511457,1735895459666,-3424.08,9.377e-05,2]
[347511458,1735895459675,-1954.12,9.377e-05,2]
[347511459,1735895459684,-876.5,9.377e-05,2]
[347511460,1735895459693,-2098.9,9.377e-05,2]
[347511461,1735895459702,-500.0,9.377e-05,2]
[347511462,1735895459711,-500.0,9.377e-05,2]
[347511463,1735895459720,-1613.49,9.377e-05,2]
[347511464,1735895459730,-500.0,9.377e-05,2]
[347511465,1735895459739,-500.0,9.377e-05,2]
[347511466,1735895459748,-2012.73,9.377e-05,2]
[347511467,1735895459757,-500.0,9.377e-05,2]
[347511468,1735895459765,-500.0,9.377e-05,2]
[347511469,1735895459775,-821.96,9.377e-05,2]
[347511470,1735895459783,-500.0,9.377e-05,2]
[347511471,1735895459792,-501.71616879,9.377e-05,2]
[347511472,1735895459802,-500.0,9.377e-05,2]
[347511473,1735895459812,-500.0,9.377e-05,2]
[347511474,1735895459822,-500.0,9.377e-05,2]
[347511475,1735895459831,-1599.57,9.377e-05,2]
[347511476,1735895459840,-500.0,9.377e-05,2]
[347511477,1735895459849,-500.0,9.377e-05,2]
[347511478,1735895459858,-500.0,9.377e-05,2]
[347511479,1735895459867,-3419.0,9.377e-05,2]
[347511480,1735895459876,-500.0,9.377e-05,2]
[347511481,1735895459885,-500.0,9.377e-05,2]
[347511482,1735895459895,-493.41593131,9.377e-05,2]
[347511483,1735895459904,-2053.61,9.377e-05,2]
[347511484,1735895459913,-1850.24,9.377e-05,2]
[347511485,1735895459922,-500.0,9.377e-05,2]
[347511486,1735895459931,-3339.27,9.377e-05,2]
[347511487,1735895459942,-500.0,9.377e-05,2]
[347511488,1735895459951,-500.0,9.377e-05,2]
[347511489,1735895459961,-500.0,9.377e-05,2]
[347511490,1735895459972,-969.48,9.377e-05,2]
[347511491,1735895459981,-500.0,9.377e-05,2]
[347511492,1735895459990,-1532.97,9.377e-05,2]
[347511493,1735895460000,-225.37352807,9.377e-05,2]
[347511494,1735895460014,-501.5459695,9.377e-05,2]
[347511495,1735895460022,-1332.58,9.377e-05,2]
[347511496,1735895460031,-2551.07,9.377e-05,2]
[347511497,1735895460040,-746.9,9.377e-05,2]
[347511498,1735895460050,-1072.59,9.377e-05,2]
[347511499,1735895460059,-500.0,9.377e-05,2]
[347511500,1735895460068,-500.0,9.377e-05,2]
[347511501,1735895460078,-1492.24,9.377e-05,2]
[347511502,1735895460088,-2042.42,9.377e-05,2]
[347511503,1735895460097,-500.0,9.377e-05,2]
[347511504,1735895460107,-500.0,9.377e-05,2]
[347511505,1735895460116,-500.0,9.377e-05,2]
[347511506,1735895460125,-948.73,9.377e-05,2]
[347511507,1735895460134,-500.0,9.377e-05,2]
[347511508,1735895460143,-1197.67,9.377e-05,2]
[347511509,1735895460152,-920.21,9.377e-05,2]
[347511510,1735895460164,-2504.52,9.377e-05,2]
[347511511,1735895460173,-500.0,9.377e-05,2]
[347511512,1735895460182,-793.88,9.377e-05,2]
[347511513,1735895460191,-606.86,9.377e-05,2]
[347511514,1735895460200,-695.33,9.377e-05,2]
[347511515,1735895460211,-622.52,9.377e-05,2]
[347511516,1735895460221,-500.0,9.377e-05,2]
[347511517,1735895460231,-81978.20397872,9.377e-05,2]
[347511518,1735895460241,-150.0,9.41e-05,2]
[347511519,1735895460250,-9612.0,9.419e-05,2]
[347511520,1735895460259,-3893.0,9.419e-05,2]
[347511521,1735895460268,-1172.0,9.419e-05,2]
[347511522,1735895460277,-150.0,9.419e-05,2]
[347511523,1735895460286,-1103.0,9.419e-05,2]
[347511524,1735895460295,-150.0,9.422e-05,2]
[347511525,1735895460305,-900.0,9.446e-05,2]
[347511526,1735895460314,-150.0,9.448e-05,2]
[347511527,1735895460323,-500.0,9.45e-05,2]
[347511528,1735895460333,-1041.22896933,9.451e-05,2]
[347511529,1735895460341,-150.0,9.451e-05,2]
[347511530,1735895460350,-694.15264622,9.472e-05,2]
[347511531,1735895460359,-4979.186,9.474e-05,2]
[347511532,1735895460368,-184.892,9.474e-05,2]
[347511533,1735895460378,-150.0,9.478e-05,2]
[347511534,1735895460387,-150.0,9.493e-05,2]
[347511535,1735895460396,-1057.0,9.502e-05,2]
[347511536,1735895460405,-500.0,9.523e-05,2]
[347511537,1735895460415,-500.0,9.523e-05,2]
[347511538,1735895460425,-243.07528358,9.534e-05,2]
[347511539,1735895460434,-150.0,9.534e-05,2]
[347511540,1735895460443,-150.0,9.534e-05,2]
[347511541,1735895460453,-150.0,9.534e-05,2]
[347511542,1735895460464,-1641.9391015,9.536e-05,2]
[347511543,1735895460473,-24547.8964712,9.536e-05,2]
[347511544,1735895460483,-10343.0996834,9.536e-05,2]
[347511545,1735895460492,-3098.25,9.539e-05,2]
[347511546,1735895460501,-6647.16,9.54e-05,2]
[347511547,1735895460510,-13386.49,9.54e-05,2]
[347511548,1735895460519,-591.13,9.54e-05,2]
[347511549,1735895460528,-2228.04,9.54e-05,2]
[347511550,1735895460537,-3657.49,9.54e-05,2]
[347511551,1735895460546,-6140.58,9.54e-05,2]
[347511552,1735895460555,-5832.3,9.54e-05,2]
[347511553,1735895460564,-5487.45,9.54e-05,2]
[347511554,1735895460573,-5825.79,9.54e-05,2]
[347511555,1735895460585,-6799.55,9.54e-05,2]
[347511556,1735895460595,-4358.13,9.54e-05,2]
[347511557,1735895460604,-8376.14,9.54e-05,2]
[347511558,1735895460614,-3940.46,9.54e-05,2]
[347511559,1735895460623,-2451.58,9.54e-05,2]
[347511560,1735895460632,-1400.37,9.54e-05,2]
[347511561,1735895460642,-3314.6,9.54e-05,2]
[347511562,1735895460650,-10566.42,9.54e-05,2]
[347511563,1735895460659,-500.0,9.54e-05,2]
[347511564,1735895460669,-3098.25,9.54e-05,2]
[347511565,1735895460678,-3098.25,9.54e-05,2]
[347511566,1735895460687,-3152.28,9.54e-05,2]
[347511567,1735895460696,-2735.89,9.54e-05,2]
[347511568,1735895460705,-2189.08,9.54e-05,2]
[347511569,1735895460714,-1599.25,9.54e-05,2]
[347511570,1735895460723,-1800.85,9.54e-05,2]
[347511571,1735895460732,-1331.35,9.54e-05,2]
[347511572,1735895460742,-1184.73,9.54e-05,2]
[347511573,1735895460751,-2019.16,9.54e-05,2]
[347511574,1735895460760,-5526.76,9.54e-05,2]
[347511575,1735895460769,-550.26,9.541e-05,2]
[347511576,1735895460777,-501.8110684,9.541e-05,2]
[347511577,1735895460786,-814.24,9.541e-05,2]
[347511578,1735895460795,-998.93,9.541e-05,2]
[347511579,1735895460804,-500.0,9.541e-05,2]
[347511580,1735895460813,-1079.06,9.541e-05,2]
[347511581,1735895460822,-500.0,9.541e-05,2]
[347511582,1735895460831,-2089.73,9.541e-05,2]
[347511583,1735895460840,-500.0,9.541e-05,2]
[347511584,1735895460848,-500.0,9.541e-05,2]
[347511585,1735895460857,-500.0,9.541e-05,2]
[347511586,1735895460866,-500.0,9.541e-05,2]
[347511587,1735895460875,-500.0,9.541e-05,2]
[347511588,1735895460884,-500.0,9.541e-05,2]
[347511589,1735895460893,-547.13,9.541e-05,2]
[347511590,1735895460902,-500.0,9.541e-05,2]
[347511591,1735895460911,-713.04,9.541e-05,2]
[347511592,1735895460919,-500.0,9.541e-05,2]
[347511593,1735895460930,-500.0,9.541e-05,2]
[347511594,1735895460940,-500.0,9.541e-05,2]
[347511595,1735895460949,-1207.6,9.541e-05,2]
[347511596,1735895460958,-956.13,9.541e-05,2]
[347511597,1735895460967,-500.0,9.541e-05,2]
[347511598,1735895460976,-500.0,9.541e-05,2]
[347511599,1735895460984,-500.0,9.541e-05,2]
[347511600,1735895460995,-859.28,9.541e-05,2]
[347511601,1735895461004,-500.0,9.541e-05,2]
[347511602,1735895461014,-3049.47,9.541e-05,2]
[347511603,1735895461024,-3049.47,9.541e-05,2]
[347511604,1735895461035,-500.0,9.541e-05,2]
[347511605,1735895461044,-500.0,9.541e-05,2]
[347511606,1735895461053,-500.0,9.541e-05,2]
[347511607,1735895461063,-500.0,9.541e-05,2]
[347511608,1735895461072,-500.0,9.541e-05,2]
[347511609,1735895461082,-1254.54,9.541e-05,2]
[347511610,1735895461091,-500.0,9.541e-05,2]
[347511611,1735895461101,-1355.17,9.541e-05,2]
[347511612,1735895461110,-500.0,9.541e-05,2]
[347511613,1735895461120,-500.0,9.541e-05,2]
[347511614,1735895461129,-500.0,9.541e-05,2]
[347511615,1735895461138,-500.0,9.541e-05,2]
[347511616,1735895461148,-500.0,9.541e-05,2]
[347511617,1735895461157,-500.0,9.541e-05,2]
[347511618,1735895461171,-1315.26,9.541e-05,2]
[347511619,1735895461180,-500.0,9.541e-05,2]
[347511620,1735895461189,-500.0,9.541e-05,2]
[347511621,1735895461199,-1018.07,9.541e-05,2]
[347511622,1735895461210,-1316.1,9.541e-05,2]
[347511623,1735895461219,-1289.38,9.541e-05,2]
[347511624,1735895461228,-500.0,9.541e-05,2]
[347511625,1735895461240,-500.0,9.541e-05,2]